fUST/lending_fUST_20250526
["ID","MTS","AMOUNT","RATE_DAILY","PERIOD"]
[362353880,1748211042286,-430.0,0.00021917,2]
[362353883,1748211042296,-177.8311,0.00021918,2]
[362353885,1748211042305,-153.0,0.00021918,2]
[362353887,1748211042314,-153.0,0.00021918,2]
[362353889,1748211042325,-153.0,0.00021918,2]
[362353892,1748211042334,-153.0,0.00021918,2]
[362353893,1748211042344,-153.0,0.00021918,2]
[362353896,1748211042353,-153.0,0.00021918,2]
[362353898,1748211042363,-186.57859842,0.00021918,2]
[362353899,1748211042372,-153.0,0.00021918,2]
[362353901,1748211042381,-153.0,0.00021918,2]
[362353903,1748211042391,-153.0,0.00021918,2]
[362353905,1748211042400,-153.0,0.00021918,2]
[362353907,1748211042410,-153.0,0.00021918,2]
[362353911,1748211042421,-153.0,0.00021918,2]
[362353914,1748211042431,-153.0,0.00021918,2]
[362353917,1748211042440,-153.0,0.00021918,2]
[362353919,1748211042449,-153.0,0.00021918,2]
[362353922,1748211042458,-153.0,0.00021918,2]
[362353942,1748211042622,-153.0,0.00021918,2]
[362353944,1748211042634,-153.0,0.00021918,2]
[362353946,1748211042644,-153.0,0.00021918,2]
[362353948,1748211042653,-153.0,0.00021918,2]
[362353950,1748211042663,-153.0,0.00021918,2]
[362353952,1748211042675,-153.0,0.00021918,2]
[362353954,1748211042684,-153.0,0.00021918,2]
[362353956,1748211042694,-153.0,0.00021918,2]
[362353958,1748211042704,-153.0,0.00021918,2]
[362353960,1748211042714,-153.0,0.00021918,2]
[362353962,1748211042723,-153.0,0.00021918,2]
[362353964,1748211042733,-153.0,0.00021918,2]
[362353966,1748211042743,-153.0,0.00021918,2]
[362353968,1748211042752,-153.0,0.00021918,2]
[362353970,1748211042762,-153.0,0.00021918,2]
[362353972,1748211042771,-153.0,0.00021918,2]
[362353974,1748211042781,-153.0,0.00021918,2]
[362353976,1748211042791,-153.0,0.00021918,2]
[362353978,1748211042800,-153.0,0.00021918,2]
[362353980,1748211042810,-153.0,0.00021918,2]
[362353982,1748211042819,-153.0,0.00021918,2]
[362353984,1748211042829,-153.0,0.00021918,2]
[362353986,1748211042839,-153.0,0.00021918,2]
[362353988,1748211042848,-153.0,0.00021918,2]
[362353990,1748211042858,-153.0,0.00021918,2]
[362353992,1748211042868,-153.0,0.00021918,2]
[362353995,1748211042877,-153.0,0.00021918,2]
[362353997,1748211042887,-153.0,0.00021918,2]
[362353999,1748211042898,-153.0,0.00021918,2]
[362354001,1748211042910,-153.0,0.00021918,2]
[362354003,1748211042922,-153.0,0.00021918,2]
[362354005,1748211042931,-153.0,0.00021918,2]
[362354007,1748211042942,-153.0,0.00021918,2]
[362354009,1748211042952,-153.0,0.00021918,2]
[362354011,1748211042961,-153.0,0.00021918,2]
[362354013,1748211042971,-153.0,0.00021918,2]
[362354015,1748211042984,-153.0,0.00021918,2]
[362354017,1748211042995,-153.0,0.00021918,2]
[362354019,1748211043006,-225.13082247,0.00021918,2]
[362354021,1748211043016,-153.0,0.00021918,2]
[362354023,1748211043027,-153.0,0.00021918,2]
[362354026,1748211043036,-153.0,0.00021918,2]
[362354028,1748211043046,-153.0,0.00021918,2]
[362354030,1748211043056,-500.4188959,0.00021973,2]
[362354032,1748211043066,-500.0,0.00021973,2]
[362354034,1748211043076,-500.0,0.00021973,2]
[362354036,1748211043086,-500.0,0.00021973,2]
[362354038,1748211043097,-500.0,0.00021973,2]
[362354040,1748211043107,-211.38915371,0.00021973,2]
[362354043,1748211043117,-500.0,0.00021973,2]
[362354045,1748211043127,-500.0,0.00021973,2]
[362354047,1748211043138,-500.0,0.00021973,2]
[362354049,1748211043148,-500.0,0.00021973,2]
[362354051,1748211043158,-556.36005721,0.00021973,2]
[362354053,1748211043171,-500.0,0.00021973,2]
[362354055,1748211043181,-500.0,0.00021973,2]
[362354057,1748211043191,-2000.0,0.00022,2]
[362354059,1748211043202,-455.0,0.00022,2]
[362354061,1748211043212,-2697.0,0.00022,15]
[362354064,1748211043222,-100079.6275714,0.00022,2]
[362354066,1748211043232,-1392.00054537,0.00022,2]
[362354068,1748211043242,-1709.57730564,0.00022,3]
[362354086,1748211043406,-5391.28902168,0.00022,3]
[362354105,1748211043591,-300.0,0.00022,3]
[362354107,1748211043603,-1257.04999999,0.00022,3]
[362354128,1748211043846,-312.9785371,0.00022,3]
[362354132,1748211043877,-8029.10513559,0.00022,3]
[362354135,1748211043886,-5891.0,0.00022,2]
[362354137,1748211043898,-310.76826518,0.00022,20]
[362354138,1748211043909,-2000.0,0.00022,2]
[362354140,1748211043922,-2000.0,0.00022,2]
[362354142,1748211043932,-2000.0,0.00022,2]
[362354145,1748211043944,-151.0,0.00022,4]
[362354147,1748211043954,-12652.24558203,0.00022,3]
[362354149,1748211043964,-918.08472964,0.00022003,6]
[362354151,1748211043975,-2000.0,0.000221,2]
[362354153,1748211043986,-465.76,0.00022191,2]
[362354155,1748211043997,-513.21,0.00022191,2]
[362354157,1748211044006,-430.0,0.00022191,2]
[362354159,1748211044016,-528.45,0.00022191,2]
[362354161,1748211044026,-181.44,0.00022191,2]
[362354163,1748211044035,-495.24,0.00022191,2]
[362354165,1748211044045,-430.0,0.00022191,2]
[362354167,1748211044055,-430.0,0.00022191,2]
[362354169,1748211044064,-430.0,0.00022191,2]
[362354171,1748211044074,-625.99,0.00022191,2]
[362354173,1748211044084,-480.39,0.00022191,2]
[362354175,1748211044094,-430.0,0.00022191,2]
[362354177,1748211044105,-430.0,0.00022191,2]
[362354179,1748211044114,-430.0,0.00022191,2]
[362354181,1748211044125,-1078.07,0.00022191,2]
[362354183,1748211044134,-897.06,0.00022191,2]
[362354185,1748211044145,-973.25,0.00022191,2]
[362354187,1748211044155,-517.73002876,0.00022191,2]
[362354189,1748211044165,-430.0,0.00022191,2]
[362354191,1748211044179,-1512.75,0.00022191,2]
[362354193,1748211044189,-430.0,0.00022191,2]
[362354195,1748211044199,-1006.6,0.00022191,2]
[362354197,1748211044209,-689.58,0.00022191,2]
[362354199,1748211044218,-873.69,0.00022191,2]
[362354202,1748211044228,-621.02,0.00022191,2]
[362354204,1748211044238,-650.65,0.00022191,2]
[362354206,1748211044247,-701.63,0.00022191,2]
[362354208,1748211044257,-200.0,0.00022191,30]
[362354210,1748211044267,-430.0,0.00022191,2]
[362354212,1748211044276,-918.08472964,0.00022245,6]
[362354214,1748211044287,-500.0,0.0002226,2]
[362354216,1748211044297,-4000.0,0.00022268,4]
[362354218,1748211044307,-1500.0,0.000223,2]
[362354220,1748211044317,-1500.0,0.000223,2]
[362354222,1748211044327,-1500.0,0.000223,2]
[362354224,1748211044337,-1500.0,0.000223,2]
[362354226,1748211044346,-1500.0,0.000223,2]
[362354228,1748211044356,-1799.9,0.000223,2]
[362354230,1748211044367,-1500.0,0.000223,2]
[362354232,1748211044377,-1500.0,0.000223,2]
[362354234,1748211044387,-1500.0,0.000223,2]
[362354236,1748211044396,-1500.0,0.000223,2]
[362354238,1748211044406,-1500.0,0.000223,2]
[362354240,1748211044416,-501.75648212,0.00022352,2]
[362354242,1748211044430,-1000.0,0.00022352,2]
[362354244,1748211044439,-1000.0,0.00022352,2]
[362354246,1748211044449,-1000.0,0.00022352,2]
[362354248,1748211044459,-1000.0,0.00022352,2]
[362354250,1748211044469,-1000.0,0.00022371,2]
[362354252,1748211044479,-1000.0,0.00022377,2]
[362354255,1748211044489,-1000.0,0.00022377,2]
[362354257,1748211044499,-1000.0,0.00022383,2]
[362354259,1748211044509,-1000.0,0.00022383,2]
[362354260,1748211044519,-1000.0,0.00022383,2]
[362354261,1748211044529,-1000.0,0.00022383,2]
[362354262,1748211044538,-500.5719268,0.00022383,2]
[362354263,1748211044548,-1000.0,0.00022383,2]
[362354264,1748211044558,-1000.0,0.00022383,2]
[362354265,1748211044568,-500.93830157,0.00022383,2]
[362354266,1748211044578,-1000.0,0.00022383,2]
[362354267,1748211044588,-1200.0,0.00022383,2]
[362354268,1748211044597,-1000.0,0.00022383,2]
[362354269,1748211044607,-326.78412022,0.00022383,2]
[362354270,1748211044616,-1000.0,0.00022383,2]
[362354271,1748211044626,-1001.94954555,0.00022383,2]
[362354272,1748211044635,-715.19637336,0.00022383,2]
[362354273,1748211044645,-1000.0,0.00022383,2]
[362354274,1748211044655,-500.42360813,0.00022383,2]
[362354275,1748211044664,-1000.0,0.00022383,2]
[362354276,1748211044675,-503.74229724,0.00022383,2]
[362354277,1748211044684,-157.3512349,0.00022383,2]
[362354278,1748211044694,-500.48255698,0.00022383,2]
[362354279,1748211044704,-1000.0,0.00022405,2]
[362354280,1748211044713,-160.0,0.00022407,4]
[362354281,1748211044723,-295.05327753,0.00022407,5]
[362354282,1748211044734,-500.0,0.00022465,2]
[362354283,1748211044743,-465.76,0.00022465,2]
[362354284,1748211044753,-500.0,0.00022465,2]
[362354285,1748211044764,-513.21,0.00022465,2]
[362354287,1748211044774,-430.0,0.00022465,2]
[362354289,1748211044784,-528.45,0.00022465,2]
[362354291,1748211044794,-495.24,0.00022465,2]
[362354292,1748211044803,-430.0,0.00022465,2]
[362354294,1748211044814,-430.0,0.00022465,2]
[362354296,1748211044823,-430.0,0.00022465,2]
[362354298,1748211044833,-625.99,0.00022465,2]
[362354300,1748211044842,-480.39,0.00022465,2]
[362354302,1748211044852,-430.0,0.00022465,2]
[362354304,1748211044863,-430.0,0.00022465,2]
[362354306,1748211044872,-486.09281649,0.00022465,2]
[362354308,1748211044882,-1078.07,0.00022465,2]
[362354310,1748211044893,-897.06,0.00022465,2]
[362354312,1748211044903,-973.25,0.00022465,2]
[362354315,1748211044916,-430.0,0.00022465,2]
[362354317,1748211044929,-1512.75,0.00022465,2]
[362354319,1748211044938,-430.0,0.00022465,2]
[362354321,1748211044949,-1006.6,0.00022465,2]
[362354323,1748211044959,-689.58,0.00022465,2]
[362354325,1748211044968,-873.69,0.00022465,2]
[362354326,1748211044978,-621.02,0.00022465,2]
[362354327,1748211044991,-650.65,0.00022465,2]
[362354328,1748211045043,-701.63,0.00022465,2]
[362354329,1748211045053,-200.0,0.00022465,30]
[362354330,1748211045062,-396.29,0.00022465,2]
[362354331,1748211045074,-918.08472964,0.00022486,7]
[362354332,1748211045084,-1000.0,0.00022521,2]
[362354333,1748211045096,-1000.0,0.00022521,2]
[362354334,1748211045107,-508.15733988,0.00022521,2]
[362354335,1748211045116,-1000.0,0.00022521,2]
[362354336,1748211045126,-1000.98659777,0.00022521,2]
[362354337,1748211045136,-501.07525116,0.00022521,2]
[362354338,1748211045146,-1002.42334305,0.00022521,2]
[362354339,1748211045155,-1001.09072617,0.00022521,2]
[362354340,1748211045164,-1018.21311571,0.00022521,2]
[362354341,1748211045176,-1000.0,0.00022521,2]
[362354342,1748211045186,-743.86462236,0.00022585,2]
[362354343,1748211045195,-255.0,0.00022658,2]
[362354344,1748211045205,-918.08472964,0.00022728,7]
[362354345,1748211045215,-465.76,0.00022739,2]
[362354346,1748211045224,-513.21,0.00022739,2]
[362354347,1748211045234,-430.0,0.00022739,2]
[362354348,1748211045244,-528.45,0.00022739,2]
[362354349,1748211045253,-495.24,0.00022739,2]
[362354350,1748211045263,-430.0,0.00022739,2]
[362354351,1748211045272,-430.0,0.00022739,2]
[362354352,1748211045282,-430.0,0.00022739,2]
[362354353,1748211045292,-625.99,0.00022739,2]
[362354354,1748211045302,-480.39,0.00022739,2]
[362354355,1748211045312,-430.0,0.00022739,2]
[362354356,1748211045323,-430.0,0.00022739,2]
[362354357,1748211045333,-1078.07,0.00022739,2]
[362354358,1748211045343,-897.06,0.00022739,2]
[362354359,1748211045353,-973.25,0.00022739,2]
[362354360,1748211045363,-430.0,0.00022739,2]
[362354361,1748211045374,-1512.75,0.00022739,2]
[362354362,1748211045384,-430.0,0.00022739,2]
[362354363,1748211045394,-1006.6,0.00022739,2]
[362354364,1748211045404,-689.58,0.00022739,2]
[362354365,1748211045413,-873.69,0.00022739,2]
[362354366,1748211045423,-621.02,0.00022739,2]
[362354367,1748211045433,-650.65,0.00022739,2]
[362354368,1748211045442,-701.63,0.00022739,2]
[362354369,1748211045452,-200.0,0.00022739,30]
[362354370,1748211045461,-500.59755841,0.00022808,2]
[362354371,1748211045472,-537.63623401,0.000229,2]
[362354372,1748211045482,-304.31598241,0.000229,2]
[362354373,1748211045494,-1500.0,0.000229,2]
[362354374,1748211045503,-1500.0,0.000229,2]
[362354375,1748211045514,-1220.72693063,0.00022919,2]
[362354376,1748211045524,-502.16540549,0.00022925,2]
[362354377,1748211045535,-1500.0,0.00022925,2]
[362354378,1748211045545,-1500.0,0.00022931,2]
[362354379,1748211045555,-1500.0,0.00022931,2]
[362354380,1748211045565,-1001.01986666,0.00022931,2]
[362354381,1748211045575,-500.86147166,0.00022931,2]
[362354382,1748211045584,-1605.18934572,0.00022931,2]
[362354384,1748211045594,-1500.0,0.00022931,2]
[362354386,1748211045603,-1500.0,0.00022931,2]
[362354388,1748211045612,-1553.18874352,0.00022931,2]
[362354389,1748211045622,-1800.0,0.00022931,2]
[362354390,1748211045631,-1500.0,0.00022931,2]
[362354391,1748211045641,-1500.0,0.00022931,2]
[362354392,1748211045652,-1500.0,0.00022931,2]
[362354393,1748211045661,-1500.0,0.00022953,2]
[362354394,1748211045672,-918.08472964,0.00022969,8]
[362354395,1748211045682,-1453.54,0.0002298,2]
[362354396,1748211045691,-54355.62390672,0.00022985,2]
[362354397,1748211045701,-3018.02835564,0.00023,2]
[362354399,1748211045710,-40034.38450075,0.00023,3]
[362354400,1748211045719,-478.0,0.00023,2]
[362354401,1748211045729,-3000.0,0.00023,2]
[362354402,1748211045739,-267.83,0.00023,7]
[362354403,1748211045748,-17935.46162181,0.00023,20]
[362354404,1748211045758,-500.0,0.00023,2]
[362354405,1748211045767,-500.0,0.00023,2]
[362354406,1748211045776,-500.0,0.00023,2]
[362354407,1748211045785,-130978.38427169,0.00023,2]
[362354408,1748211045794,-247.89948391,0.00023,2]
[362354409,1748211045803,-2000.0,0.00023,2]
[362354410,1748211045813,-2000.0,0.00023,2]
[362354411,1748211045822,-1000.0,0.00023,2]
[362354412,1748211045832,-2000.0,0.00023,2]
[362354413,1748211045840,-171.0,0.00023,7]
[362354414,1748211045850,-229.13142565,0.00023,3]
[362354415,1748211045860,-423.00916439,0.00023,3]
[362354416,1748211045870,-184.0,0.00023,7]
[362354417,1748211045879,-160.0,0.00023,3]
[362354418,1748211045888,-160.0,0.00023,3]
[362354420,1748211045900,-465.76,0.00023013,2]
[362354421,1748211045913,-500.0,0.00023013,2]
[362354422,1748211045922,-513.21,0.00023013,2]
[362354423,1748211045935,-430.0,0.00023013,2]
[362354424,1748211045946,-528.45,0.00023013,2]
[362354426,1748211045955,-495.24,0.00023013,2]
[362354427,1748211045964,-430.0,0.00023013,2]
[362354428,1748211045974,-430.0,0.00023013,2]
[362354429,1748211045984,-430.0,0.00023013,2]
[362354430,1748211045994,-625.99,0.00023013,2]
[362354431,1748211046005,-480.39,0.00023013,2]
[362354432,1748211046015,-430.0,0.00023013,2]
[362354433,1748211046025,-430.0,0.00023013,2]
[362354434,1748211046034,-1078.07,0.00023013,2]
[362354435,1748211046043,-897.06,0.00023013,2]
[362354436,1748211046055,-973.25,0.00023013,2]
[362354437,1748211046064,-430.0,0.00023013,2]
[362354439,1748211046074,-1512.75,0.00023013,2]
[362354441,1748211046083,-430.0,0.00023013,2]
[362354442,1748211046093,-1006.6,0.00023013,2]
[362354443,1748211046102,-689.58,0.00023013,2]
[362354444,1748211046113,-873.69,0.00023013,2]
[362354445,1748211046123,-621.02,0.00023013,2]
[362354446,1748211046132,-650.65,0.00023013,2]
[362354447,1748211046142,-701.63,0.00023013,2]
[362354448,1748211046152,-216.48034346,0.00023013,30]
[362354449,1748211046163,-8228.90517184,0.00023014,2]
[362354450,1748211046175,-5000.0,0.00023014,2]
[362354451,1748211046185,-5000.0,0.00023014,2]
[362354452,1748211046194,-5000.0,0.00023014,2]
[362354453,1748211046203,-5000.0,0.00023014,2]
[362354454,1748211046213,-1492.96291503,0.00023068,2]
[362354455,1748211046223,-1500.0,0.00023068,2]
[362354456,1748211046233,-1500.0,0.00023068,2]
[362354457,1748211046243,-1195.67954702,0.00023068,2]
[362354458,1748211046253,-825.44,0.00023072,6]
[362354459,1748211046262,-2000.0,0.000231,2]
[362354460,1748211046272,-825.44,0.00023172,2]
[362354461,1748211046282,-231.28369723,0.00023205,2]
[362354462,1748211046292,-918.08472964,0.0002321,8]
[362354463,1748211046302,-5280.00765754,0.00023229,2]
[362354464,1748211046312,-5000.0,0.00023229,2]
[362354465,1748211046321,-5000.0,0.00023229,2]
[362354466,1748211046331,-5000.0,0.00023229,2]
[362354467,1748211046340,-5000.0,0.00023229,2]
[362354468,1748211046351,-5000.0,0.00023251,2]
[362354469,1748211046361,-5000.0,0.00023251,2]
[362354470,1748211046371,-5000.0,0.00023251,2]
[362354471,1748211046382,-5000.0,0.00023251,2]
[362354472,1748211046392,-5000.0,0.00023251,2]
[362354473,1748211046401,-825.44,0.00023272,6]
[362354474,1748211046411,-465.76,0.00023287,2]
[362354475,1748211046421,-513.21,0.00023287,2]
[362354476,1748211046433,-476.99634377,0.00023287,2]
[362354477,1748211046443,-528.45,0.00023287,2]
[362354478,1748211046455,-495.24,0.00023287,2]
[362354479,1748211046465,-430.0,0.00023287,2]
[362354480,1748211046475,-430.0,0.00023287,2]
[362354481,1748211046486,-430.0,0.00023287,2]
[362354482,1748211046498,-625.99,0.00023287,2]
[362354483,1748211046509,-480.39,0.00023287,2]
[362354484,1748211046519,-395.84678536,0.00023287,2]
[362354485,1748211046529,-430.0,0.00023287,2]
[362354486,1748211046539,-1078.07,0.00023287,2]
[362354487,1748211046548,-897.06,0.00023287,2]
[362354488,1748211046559,-973.25,0.00023287,2]
[362354489,1748211046570,-430.0,0.00023287,2]
[362354490,1748211046581,-1512.75,0.00023287,2]
[362354491,1748211046591,-430.0,0.00023287,2]
[362354492,1748211046602,-1006.6,0.00023287,2]
[362354493,1748211046613,-689.58,0.00023287,2]
[362354494,1748211046624,-873.69,0.00023287,2]
[362354495,1748211046634,-621.02,0.00023287,2]
[362354496,1748211046645,-650.65,0.00023287,2]
[362354497,1748211046655,-701.63,0.00023287,2]
[362354498,1748211046666,-5000.0,0.00023337,2]
[362354499,1748211046677,-825.44,0.00023372,3]
[362354500,1748211046691,-184.0,0.00023374,7]
[362354501,1748211046701,-5042.96737007,0.00023408,2]
[362354502,1748211046711,-5000.0,0.00023408,2]
[362354503,1748211046721,-5000.0,0.00023408,2]
[362354504,1748211046731,-5000.0,0.00023408,2]
[362354505,1748211046741,-5000.0,0.00023408,2]
[362354506,1748211046751,-645.81764302,0.00023448,2]
[362354507,1748211046761,-2000.0,0.00023448,2]
[362354508,1748211046771,-918.08472964,0.00023452,9]
[362354509,1748211046781,-825.44,0.00023472,5]
[362354510,1748211046793,-1468.16621161,0.00023473,2]
[362354511,1748211046804,-1013.66233292,0.00023479,2]
[362354512,1748211046815,-2000.0,0.00023479,2]
[362354513,1748211046826,-2000.0,0.00023479,2]
[362354514,1748211046837,-2000.0,0.00023479,2]
[362354515,1748211046848,-2400.0,0.00023479,2]
[362354516,1748211046860,-2000.0,0.00023479,2]
[362354517,1748211046870,-2000.0,0.00023479,2]
[362354518,1748211046881,-1057.41873304,0.00023479,2]
[362354519,1748211046891,-2000.0,0.00023501,2]
[362354520,1748211046907,-1050.465869,0.00023525,15]
[362354521,1748211046916,-465.76,0.00023561,2]
[362354522,1748211046928,-500.0,0.00023561,2]
[362354523,1748211046940,-513.21,0.00023561,2]
[362354524,1748211046954,-528.45,0.00023561,2]
[362354525,1748211046965,-495.24,0.00023561,2]
[362354526,1748211046979,-430.0,0.00023561,2]
[362354527,1748211046993,-430.0,0.00023561,2]
[362354528,1748211047003,-430.0,0.00023561,2]
[362354529,1748211047013,-480.39,0.00023561,2]
[362354530,1748211047023,-625.99,0.00023561,2]
[362354531,1748211047033,-430.0,0.00023561,2]
[362354532,1748211047043,-1078.07,0.00023561,2]
[362354533,1748211047053,-897.06,0.00023561,2]
[362354534,1748211047064,-973.25,0.00023561,2]
[362354535,1748211047074,-430.0,0.00023561,2]
[362354536,1748211047085,-1512.75,0.00023561,2]
[362354537,1748211047096,-430.0,0.00023561,2]
[362354538,1748211047106,-1006.6,0.00023561,2]
[362354539,1748211047117,-689.58,0.00023561,2]
[362354540,1748211047129,-873.69,0.00023561,2]
[362354541,1748211047139,-621.02,0.00023561,2]
[362354542,1748211047151,-650.65,0.00023561,2]
[362354543,1748211047160,-701.63,0.00023561,2]
[362354544,1748211047170,-825.44,0.00023572,2]
[362354545,1748211047182,-2000.0,0.00023616,2]
[362354546,1748211047191,-2000.0,0.00023616,2]
[362354547,1748211047201,-825.44,0.00023672,5]
[362354548,1748211047211,-638.78027905,0.00023691,2]
[362354549,1748211047227,-4361.21972095,0.00023691,2]
[362354550,1748211047237,-2129.8916605,0.00023691,2]
[362354553,1748211242160,287.0,0.00013699,2]
[362354554,1748211294921,-255.75,0.00013699,2]
[362354564,1748211651443,248.85,0.00013699,2]
[362354653,1748212232395,-332.673649,0.00013699,2]
[362354656,1748212232405,-177.93,0.00014722,2]
[362354657,1748212232414,-386.27895886,0.00015,2]
[362354660,1748212232424,-266.89,0.00015949,2]
[362354661,1748212232433,-3355.0,0.000166,2]
[362354663,1748212232444,-355.86,0.00017176,2]
[362354664,1748212232454,-444.82,0.00018402,2]
[362354665,1748212232463,-4029.7756813,0.00018436,2]
[362354666,1748212232473,-197.9765349,0.00018802,2]
[362354668,1748212232482,-207.4,0.00019098,2]
[362354670,1748212232492,-430.0,0.00019178,2]
[362354671,1748212232501,-264.47280464,0.00019178,2]
[362354672,1748212232511,-430.0,0.00019178,2]
[362354673,1748212232521,-430.0,0.00019178,2]
[362354674,1748212232530,-430.0,0.00019178,2]
[362354675,1748212232540,-430.0,0.00019178,2]
[362354676,1748212232549,-430.0,0.00019178,2]
[362354677,1748212232558,-430.0,0.00019178,2]
[362354678,1748212232568,-430.0,0.00019178,2]
[362354679,1748212232747,-430.0,0.00019178,2]
[362354680,1748212232757,-430.0,0.00019178,2]
[362354681,1748212232771,-430.0,0.00019178,2]
[362354682,1748212232783,-430.0,0.00019178,2]
[362354683,1748212232793,-430.0,0.00019178,2]
[362354684,1748212232804,-853.47,0.00019178,2]
[362354685,1748212232814,-430.0,0.00019178,2]
[362354686,1748212232823,-430.0,0.00019178,2]
[362354687,1748212232833,-430.0,0.00019178,2]
[362354688,1748212232843,-430.0,0.00019178,2]
[362354689,1748212232852,-441.22,0.00019178,2]
[362354690,1748212232862,-430.0,0.00019178,2]
[362354691,1748212232872,-430.0,0.00019178,2]
[362354692,1748212232882,-430.0,0.00019178,2]
[362354693,1748212232893,-430.0,0.00019178,2]
[362354694,1748212232903,-430.0,0.00019178,2]
[362354695,1748212232912,-430.0,0.00019178,2]
[362354696,1748212232921,-430.0,0.00019178,2]
[362354697,1748212232931,-430.0,0.00019178,2]
[362354698,1748212232941,-310.32908957,0.00019178,2]
[362354699,1748212232951,-430.0,0.00019178,2]
[362354700,1748212232960,-430.0,0.00019178,2]
[362354701,1748212232971,-552.94,0.00019178,2]
[362354702,1748212232981,-430.0,0.00019178,2]
[362354703,1748212232990,-185.96615559,0.00019352,2]
[362354704,1748212233000,-105.70724972,0.00019452,2]
[362354705,1748212233012,-324.29275028,0.00019452,2]
[362354706,1748212233022,-218.45724972,0.00019452,2]
[362354723,1748212238075,-287.0,0.00019451,2]
[362354724,1748212238084,-170.55042796,0.00019452,2]
[362354725,1748212238094,-430.0,0.00019452,2]
[362354726,1748212238104,-430.0,0.00019452,2]
[362354727,1748212238113,-265.53262795,0.00019452,2]
[362354728,1748212238123,-214.89560876,0.00019452,2]
[362354729,1748212238131,-430.0,0.00019452,2]
[362354730,1748212238141,-430.0,0.00019452,2]
[362354731,1748212238151,-430.0,0.00019452,2]
[362354732,1748212238163,-853.47,0.00019452,2]
[362354733,1748212238173,-430.0,0.00019452,2]
[362354734,1748212238182,-430.0,0.00019452,2]
[362354735,1748212238192,-430.0,0.00019452,2]
[362354736,1748212238203,-441.22,0.00019452,2]
[362354737,1748212238212,-430.0,0.00019452,2]
[362354738,1748212238222,-430.0,0.00019452,2]
[362354739,1748212238233,-430.0,0.00019452,2]
[362354740,1748212238243,-430.0,0.00019452,2]
[362354741,1748212238255,-382.08263381,0.00019452,2]
[362354742,1748212238265,-430.0,0.00019452,2]
[362354743,1748212238275,-430.0,0.00019452,2]
[362354744,1748212238288,-430.0,0.00019452,2]
[362354745,1748212238298,-430.0,0.00019452,2]
[362354746,1748212238308,-430.0,0.00019452,2]
[362354747,1748212238320,-552.94,0.00019452,2]
[362354748,1748212238331,-390.22134882,0.00019452,2]
[362354749,1748212238346,-39.77865118,0.00019452,2]
[362354750,1748212238358,-423.00916439,0.00019529,2]
[362354751,1748212238367,-229.13142565,0.00019529,2]
[362354752,1748212238379,-160.0,0.00019529,2]
[362354753,1748212238389,-212.55626673,0.00019529,2]
[362354754,1748212238400,-894.64583333,0.00019529,2]
[362354755,1748212238411,-160.0,0.00019529,2]
[362354756,1748212238421,-160.0,0.00019529,2]
[362354757,1748212238430,-160.0,0.00019529,2]
[362354758,1748212238439,-533.78,0.00019629,2]
[362354759,1748212238449,-430.0,0.00019726,2]
[362354760,1748212238458,-77.9365626,0.00019726,2]
[362355094,1748212243190,-352.0634374,0.00019726,2]